bitfinex/quotes_SOLUSD_20250818
["timestamp","ask_amount","ask_price","bid_price","bid_amount"]
[1755556130714,1e-08,185.22,185.21,61.90613572]
[1755556134910,1e-08,185.22,185.21,58.82549206]
[1755556135114,1e-08,185.22,185.21,61.90613572]
[1755556139028,1e-08,185.22,185.21,64.06952572]
[1755556139609,1e-08,185.22,185.21,25.74952572]
[1755556139809,1e-08,185.22,185.21,64.04952572]
[1755556141497,0.69000001,185.22,185.21,64.04952572]
[1755556141811,0.69000001,185.22,185.21,60.96888206]
[1755556142311,0.69000001,185.22,185.21,45.86266649]
[1755556142490,0.69000001,185.22,185.21,7.56266649]
[1755556142695,0.69000001,185.22,185.21,43.69927649]
[1755556143242,0.69000001,185.22,185.21,49.92056415]
[1755556143603,0.69000001,185.22,185.21,46.83992049]
[1755556143824,0.69000001,185.22,185.21,43.69927649]
[1755556145093,0.69000001,185.22,185.21,5.39927649]
[1755556145322,0.69000001,185.22,185.21,43.69927649]
[1755556147439,3.77064367,185.22,185.21,38.3]
[1755556147726,3.77064367,185.22,185.19,0.03]
[1755556147928,1e-08,185.22,185.2,38.3]
[1755556148100,3.74064366,185.21,185.2,38.3]
[1755556150729,3.74064366,185.21,185.19,0.03]
[1755556150930,3.08064366,185.21,185.2,38.33]
[1755556151226,3.08064366,185.21,185.2,0.03]
[1755556151432,3.74064366,185.21,185.2,0.03]
[1755556152920,0.66,185.21,185.2,38.33]
[1755556153518,3.74064366,185.21,185.2,38.33]
[1755556154212,3.74064366,185.21,185.2,43.72956803]
[1755556154731,0.66,185.21,185.2,43.72956803]
[1755556156530,3.74064366,185.21,185.2,43.72956803]
[1755556158435,9.13992015,185.21,185.2,0.03]
[1755556158836,15.10621557,185.2,185.18,0.03]
[1755556159013,3.08064366,185.19,185.17,0.03]
[1755556159211,3.08064366,185.18,185.17,0.03]
[1755556159410,3.74064366,185.18,185.17,0.03]
[1755556160421,5.48015577,185.18,185.17,0.03]
[1755556162107,10.88030697,185.18,185.17,0.03]
[1755556165743,5.48015577,185.18,185.17,0.03]
[1755556166810,10.88030697,185.18,185.17,0.03]
[1755556169036,5.48015577,185.18,185.17,0.03]
[1755556170158,4.82015577,185.18,185.17,0.03]
[1755556170444,30.82015577,185.18,185.17,0.03]
[1755556170616,26.0,185.18,185.17,0.03]
[1755556170823,30.82015577,185.18,185.17,0.03]
[1755556171218,31.48015577,185.18,185.17,0.03]
[1755556171937,30.82015577,185.18,185.17,0.03]
[1755556172341,5.48015577,185.18,185.17,0.03]
[1755556172528,4.82015577,185.18,185.17,0.03]
[1755556172729,5.48015577,185.18,185.17,0.03]
[1755556173625,31.48015577,185.18,185.17,0.03]
[1755556176450,30.82015577,185.18,185.17,0.03]
[1755556176747,31.48015577,185.18,185.17,0.03]
[1755556180446,29.7441227,185.18,185.17,0.03]
[1755556181449,29.0841227,185.18,185.17,0.03]
[1755556181824,29.7441227,185.18,185.17,0.03]
[1755556186231,29.8041227,185.18,185.17,0.03]
[1755556188734,26.72,185.18,185.17,0.03]
[1755556188934,29.8041227,185.18,185.17,0.03]
[1755556189949,26.06,185.18,185.17,0.72]
[1755556190266,29.1441227,185.18,185.17,0.72]
[1755556190568,29.1441227,185.18,185.17,0.03]
[1755556190868,0.06,185.18,185.17,0.03]
[1755556191164,3.1441227,185.18,185.17,0.03]
[1755556191534,0.06,185.18,185.17,0.03]
[1755556191739,3.1441227,185.18,185.17,0.03]
[1755556193344,0.06,185.18,185.17,0.03]
[1755556193537,3.1441227,185.18,185.17,0.03]
[1755556194739,0.06,185.18,185.17,0.03]
[1755556194943,3.1441227,185.18,185.17,0.72]
[1755556196362,3.1441227,185.18,185.17,0.03]
[1755556197773,0.06,185.18,185.17,0.03]
[1755556199856,0.06,185.18,185.17,0.72]
[1755556200373,0.06,185.18,185.17,0.03]
[1755556200668,3.8041227,185.18,185.17,0.03]
[1755556201773,0.06,185.18,185.17,0.03]
[1755556203142,4.11174229,185.18,185.17,0.03]
[1755556204548,7.19586499,185.18,185.17,0.03]
[1755556204875,7.85586499,185.18,185.17,0.03]
[1755556205371,4.77174229,185.18,185.17,0.03]
[1755556205752,4.11174229,185.18,185.17,0.03]
[1755556206072,7.1956988,185.18,185.17,0.03]
[1755556206680,7.1956392,185.18,185.17,0.03]
[1755556207375,0.06,185.18,185.17,0.72]
[1755556208781,0.06,185.18,185.17,6.12044283]
[1755556209554,0.06,185.18,185.17,9.20456553]
[1755556211261,0.06,185.18,185.17,6.12044283]
[1755556211583,0.06,185.18,185.17,9.20456553]
[1755556215266,0.06,185.18,185.17,8.51456553]
[1755556215468,0.72,185.18,185.17,5.43044283]
[1755556215687,0.06,185.18,185.17,5.43044283]
[1755556218688,0.06,185.18,185.17,3.1141227]
[1755556220016,0.06,185.18,185.17,3.7741227]
[1755556220878,0.06,185.18,185.17,9.17456553]
[1755556224403,0.06,185.18,185.17,6.09044283]
[1755556224610,0.06,185.18,185.17,9.17456553]
[1755556230340,0.06,185.18,185.17,5.43044283]
[1755556230638,0.72,185.18,185.17,5.43044283]
[1755556231488,0.72,185.18,185.17,0.03]
[1755556231693,3.8041227,185.18,185.17,0.03]
[1755556232920,9.2042739,185.18,185.17,0.03]
[1755556233295,13.24591999,185.18,185.17,0.03]
[1755556233612,13.24643412,185.18,185.17,0.03]
[1755556233984,28.35264969,185.18,185.17,0.03]
[1755556234192,31.98991846,185.18,185.17,0.03]
[1755556235399,28.35264969,185.18,185.17,0.03]
[1755556236189,7.84628292,185.18,185.17,0.03]
[1755556236396,3.8041227,185.18,185.17,0.03]
[1755556237622,7.8435931,185.18,185.17,0.03]
[1755556238298,33.72167438,185.18,185.17,0.03]
[1755556239597,30.08640998,185.18,185.17,0.03]
[1755556242523,26.04693958,185.18,185.17,0.03]
[1755556242822,30.08346343,185.18,185.17,0.03]
[1755556243201,30.08328984,185.18,185.17,0.03]
[1755556246108,33.71531631,185.18,185.17,0.03]
[1755556246309,15.10621557,185.17,185.16,0.03]
[1755556246507,66.55516511,185.17,185.16,0.03]
[1755556247233,71.95560794,185.17,185.16,0.03]
[1755556247634,68.32358147,185.17,185.16,0.03]
[1755556247807,71.9545388,185.17,185.16,0.03]
[1755556248436,71.9545388,185.17,185.15,0.03]
[1755556248631,8.85692307,185.16,185.15,0.03]
[1755556248829,9.57692307,185.16,185.15,0.03]
[1755556249637,33.71321812,185.16,185.15,0.03]
[1755556250510,28.89264531,185.16,185.15,0.03]
[1755556250708,30.08387313,185.16,185.15,0.03]
[1755556251041,33.71209411,185.16,185.15,0.03]
[1755556251350,30.08387313,185.16,185.15,0.03]
[1755556251720,30.07764033,185.16,185.15,0.03]
[1755556252311,33.70428287,185.16,185.15,0.03]
[1755556252634,25.10621557,185.15,185.13,0.03]
[1755556252842,26.0,185.11,185.09,0.03]
[1755556253139,69.06057281,185.11,185.09,0.03]
[1755556253640,69.06057281,185.11,185.09,0.72]
[1755556255040,69.06057281,185.11,185.09,0.03]
[1755556255715,64.24,185.11,185.09,0.03]
[1755556255953,69.06057281,185.11,185.09,0.03]
[1755556256519,74.4627661,185.11,185.09,0.03]
[1755556257323,36.9427661,185.11,185.09,0.03]
[1755556257517,69.06057281,185.11,185.09,0.03]
[1755556257719,69.78057281,185.11,185.09,0.03]
[1755556258818,75.1827661,185.11,185.09,0.03]
[1755556259743,90.28898167,185.11,185.09,0.03]
[1755556260318,26.0,185.11,185.1,0.72]
[1755556260517,4.82057281,185.12,185.1,0.72]
[1755556260724,4.82057281,185.13,185.1,0.72]
[1755556261217,38.24,185.14,185.1,0.72]
[1755556261419,4.82057281,185.13,185.1,0.72]
[1755556261729,38.24,185.14,185.11,0.69]
[1755556261730,4.82057281,185.12,185.11,0.69]
[1755556261929,4.82057281,185.12,185.1,0.03]
[1755556262243,4.82057281,185.12,185.1,0.72]
[1755556263144,30.82057281,185.11,185.1,0.03]
[1755556263359,46.64678838,185.11,185.1,0.03]
[1755556263730,15.10621557,185.1,185.09,0.03]
[1755556263931,58.88678838,185.1,185.09,0.03]
[1755556266355,64.28927352,185.1,185.09,0.03]
[1755556268047,64.28927352,185.1,185.08,0.03]
[1755556268250,5.48057281,185.09,185.08,0.03]
[1755556269154,15.23933594,185.09,185.08,0.03]
[1755556270062,95.80621557,185.08,185.07,0.03]
[1755556270346,100.62678838,185.08,185.07,0.03]
[1755556270522,138.86678838,185.08,185.07,0.03]
[1755556271140,144.26985732,185.08,185.07,0.03]
[1755556271342,138.86678838,185.08,185.07,0.03]
[1755556272059,144.26985732,185.08,185.07,0.03]
[1755556273951,85.52057281,185.08,185.07,0.03]
[1755556274152,43.06057281,185.08,185.07,0.71]
[1755556274362,43.06057281,185.08,185.07,0.03]
[1755556274564,43.06057281,185.08,185.07,0.71]
[1755556275553,69.06057281,185.09,185.07,0.71]
[1755556275757,30.82057281,185.09,185.07,0.71]
[1755556276348,4.82057281,185.08,185.07,0.03]
[1755556276657,4.82057281,185.08,185.07,0.71]
[1755556276956,30.82057281,185.09,185.07,0.71]
[1755556277257,43.06057281,185.1,185.07,0.71]
[1755556277438,30.82057281,185.12,185.07,10.93385276]
[1755556277636,4.82057281,185.12,185.08,0.68]
[1755556278356,38.24,185.13,185.08,0.68]
[1755556278657,4.82057281,185.13,185.08,5.50057281]
[1755556278856,64.24,185.14,185.09,4.82057281]
[1755556279058,4.82057281,185.14,185.1,0.68]
[1755556279448,4.82057281,185.13,185.1,0.68]
[1755556279652,4.82057281,185.13,185.1,6.08240102]
[1755556279854,4.82057281,185.13,185.11,0.68]
[1755556280449,38.24,185.15,185.11,0.68]
[1755556280648,4.82057281,185.13,185.11,0.68]
[1755556280966,4.82057281,185.13,185.1,5.40240102]
[1755556281168,4.82057281,185.14,185.12,0.68]
[1755556281664,4.82057281,185.14,185.1,6.08240102]
[1755556281956,4.82057281,185.14,185.11,0.68]
[1755556283449,4.82057281,185.14,185.11,6.08218671]
[1755556284259,4.82057281,185.13,185.09,0.68]
[1755556284562,4.82057281,185.11,185.07,0.71]
[1755556284767,5.48057281,185.11,185.08,5.40304493]
[1755556286341,0.66,185.11,185.07,0.71]
[1755556286544,4.82057281,185.1,185.07,0.71]
[1755556286852,5.48057281,185.1,185.07,0.03]
[1755556287451,4.82057281,185.08,185.07,0.03]
[1755556288087,5.48057281,185.08,185.07,0.03]
[1755556288766,10.88364175,185.08,185.07,0.03]
[1755556289170,5.48057281,185.08,185.07,0.03]
[1755556290260,30.82057281,185.08,185.07,0.03]
[1755556290466,31.48057281,185.08,185.07,0.03]
[1755556291271,30.82057281,185.08,185.07,0.03]
[1755556292058,31.48057281,185.08,185.07,0.03]
[1755556292658,51.98985732,185.08,185.07,0.03]
[1755556293284,90.20985732,185.08,185.07,0.03]
[1755556296963,94.25085114,185.08,185.07,0.03]
[1755556297788,90.20985732,185.08,185.07,0.03]
[1755556298596,69.04057281,185.08,185.07,0.03]
[1755556299479,75.13364175,185.08,185.07,0.03]
[1755556299677,75.19364175,185.08,185.07,0.03]
[1755556300073,69.79057281,185.08,185.07,0.03]
[1755556300284,64.28,185.08,185.07,0.03]
[1755556300482,69.10057281,185.08,185.07,0.03]
[1755556300866,30.88057281,185.08,185.07,0.03]
[1755556301067,30.88057281,185.08,185.07,0.7]
[1755556301471,0.06,185.08,185.07,6.10336089]
[1755556301663,0.06,185.08,185.07,0.03]
[1755556301863,4.88057281,185.08,185.07,0.03]
[1755556305096,4.88057281,185.08,185.07,0.7]
[1755556305279,4.88057281,185.08,185.07,0.03]
[1755556306894,5.57057281,185.08,185.07,0.03]
[1755556307193,4.88057281,185.08,185.07,0.03]
[1755556307579,5.57057281,185.08,185.07,0.03]
[1755556307778,30.12111345,185.08,185.07,0.03]
[1755556308681,33.75834366,185.08,185.07,0.03]
[1755556309195,33.75862848,185.08,185.07,0.03]
[1755556309375,15.10621557,185.07,185.06,0.03]
[1755556309575,71.91892043,185.07,185.06,0.03]
[1755556314292,71.91892043,185.07,185.05,0.03]
[1755556314606,13.18934397,185.06,185.05,0.03]
[1755556315102,13.18508844,185.06,185.05,0.03]
[1755556315605,13.1844535,185.06,185.05,0.03]
[1755556316305,33.00432193,185.06,185.05,0.03]
[1755556316487,33.69432193,185.06,185.05,0.03]
[1755556317913,30.05709172,185.06,185.05,0.03]
[1755556321895,33.68700965,185.06,185.05,0.03]
[1755556322214,30.05709172,185.06,185.05,0.03]
[1755556323201,26.02044124,185.06,185.05,0.03]
[1755556323405,33.68245316,185.06,185.05,0.03]
[1755556323819,30.0531633,185.06,185.05,0.03]
[1755556323996,30.05307897,185.06,185.05,0.03]
[1755556326419,29.36307897,185.06,185.05,0.03]
[1755556328545,32.99503599,185.06,185.05,0.03]
[1755556329126,33.66503599,185.06,185.05,0.03]
[1755556332728,33.67187011,185.06,185.05,0.03]
[1755556335425,33.00187011,185.06,185.05,0.03]
[1755556335606,28.96239826,185.06,185.05,0.03]
[1755556335810,33.00231834,185.06,185.05,0.72]
[1755556336111,33.00231834,185.06,185.05,0.03]
[1755556337024,33.67231834,185.06,185.05,0.03]
[1755556337627,33.00231834,185.06,185.05,0.03]
[1755556340025,80.7,185.07,185.05,0.72]
[1755556340320,38.22,185.06,185.05,0.72]
[1755556340624,80.7,185.07,185.05,0.72]
[1755556340801,38.22,185.07,185.05,0.72]
[1755556343558,26.06,185.08,185.05,6.12393983]
[1755556343711,64.26,185.08,185.06,0.69]
[1755556343899,26.06,185.08,185.06,0.69]
[1755556344506,0.06,185.08,185.06,5.51057281]
[1755556344810,0.06,185.08,185.07,0.69]
[1755556346430,0.06,185.08,185.07,10.9139337]
[1755556352512,0.06,185.08,185.07,6.09336089]
[1755556352713,0.06,185.08,185.07,10.9139337]
[1755556356127,0.06,185.08,185.07,5.40336089]
[1755556356531,0.06,185.08,185.07,10.9139337]
[1755556357226,0.06,185.08,185.07,10.2239337]
[1755556357423,0.06,185.08,185.06,10.22415634]
[1755556358016,0.06,185.08,185.06,5.40358353]
[1755556358214,0.78,185.08,185.06,5.40358353]
[1755556358554,0.78,185.08,185.05,10.25443931]
[1755556358726,0.78,185.08,185.05,10.94443931]
[1755556358929,0.06,185.08,185.05,10.94443931]
[1755556360417,0.06,185.08,185.06,6.0933734]
[1755556360640,0.06,185.08,185.07,4.82057281]
[1755556360828,0.06,185.08,185.07,5.51057281]
[1755556362446,0.06,185.08,185.07,6.09336089]
[1755556362624,0.06,185.08,185.07,10.9139337]
[1755556366650,0.06,185.08,185.07,10.2239337]
[1755556367247,0.78,185.08,185.07,5.40336089]
[1755556367647,0.06,185.08,185.07,5.40336089]
[1755556367842,0.06,185.08,185.07,10.2239337]
[1755556368025,0.06,185.08,185.07,10.9139337]
[1755556369021,0.06,185.08,185.06,5.4336331]
[1755556369022,0.78,185.08,185.06,5.4336331]
[1755556369661,0.78,185.08,185.06,0.03]
[1755556372527,0.06,185.08,185.06,0.03]
[1755556373353,0.78,185.08,185.06,0.03]
[1755556374525,0.78,185.08,185.06,4.85057281]
[1755556375239,0.06,185.08,185.06,4.85057281]
[1755556375451,0.06,185.08,185.06,0.03]
[1755556375637,0.72,185.07,185.06,0.03]
[1755556376063,0.06,185.08,185.06,0.03]
[1755556376555,0.78,185.08,185.06,0.03]
[1755556377068,0.06,185.08,185.07,5.51057281]
[1755556378263,0.06,185.08,185.07,4.82057281]
[1755556378835,0.06,185.08,185.06,0.03]
[1755556379036,0.72,185.07,185.06,0.03]
[1755556380461,0.06,185.08,185.06,0.03]
[1755556380759,0.06,185.08,185.07,5.51057281]
[1755556381464,0.06,185.08,185.06,4.85057281]
[1755556381646,0.06,185.08,185.06,5.54057281]
[1755556382365,0.06,185.08,185.07,5.40336089]
[1755556382945,0.78,185.08,185.06,5.43363342]
[1755556383148,0.72,185.07,185.06,5.43363342]
[1755556383765,0.72,185.07,185.06,0.03]
[1755556386063,5.54057281,185.07,185.06,0.03]
[1755556386645,0.72,185.07,185.06,0.03]
[1755556391859,9.58981797,185.07,185.06,0.03]
[1755556392457,4.76924516,185.07,185.06,0.03]
[1755556393061,4.76850209,185.07,185.06,0.03]
[1755556393455,0.06,185.08,185.06,0.03]
[1755556396773,0.06,185.08,185.07,0.69]
[1755556397755,0.06,185.08,185.06,5.43365286]
[1755556398075,0.06,185.08,185.06,6.12365286]
[1755556400971,0.06,185.08,185.07,0.69]
[1755556402657,0.06,185.08,185.07,5.51057281]
[1755556402857,0.06,185.08,185.07,10.9139337]
[1755556403607,0.06,185.08,185.07,6.09336089]
[1755556404463,0.06,185.08,185.07,5.40336089]
[1755556404888,0.06,185.08,185.06,5.43355054]
[1755556405091,0.68,185.07,185.06,5.43355054]
[1755556405692,0.74,185.08,185.06,5.43355054]
[1755556407594,0.74,185.08,185.06,0.03]
[1755556407797,0.06,185.08,185.06,0.03]
[1755556408096,0.68,185.07,185.06,0.03]
[1755556408465,0.06,185.08,185.06,0.72]
[1755556408671,0.06,185.08,185.06,5.54057281]
[1755556408873,0.06,185.08,185.07,4.82057281]
[1755556409091,0.06,185.08,185.07,5.51057281]
[1755556409790,0.06,185.08,185.07,10.9139337]
[1755556412578,0.06,185.1,185.07,26.02014927]
[1755556412878,0.06,185.1,185.09,4.82057281]
[1755556413615,0.06,185.1,185.09,13.07837883]
[1755556415897,0.06,185.12,185.09,13.07837883]
[1755556416095,0.06,185.12,185.11,4.82057281]
[1755556416498,0.06,185.14,185.11,33.67525081]
[1755556416690,0.06,185.14,185.13,4.82057281]
[1755556417119,0.06,185.14,185.13,10.91218248]
[1755556419131,0.06,185.17,185.13,10.91218248]
[1755556419132,0.06,185.17,185.16,31.40073449]
[1755556419313,0.06,185.17,185.16,74.3413073]
[1755556419622,0.06,185.17,185.16,75.0213073]
[1755556422085,0.06,185.19,185.17,15.10621557]
[1755556422285,0.06,185.19,185.18,4.82057281]
[1755556422498,0.06,185.19,185.18,43.60057281]
[1755556422927,0.78,185.19,185.16,31.40073449]
[1755556423223,0.78,185.19,185.13,15.78621557]
[1755556423224,0.06,185.19,185.14,10.22189073]
[1755556423429,4.88057281,185.19,185.16,38.1]
[1755556423723,5.54057281,185.18,185.16,38.1]
[1755556423897,0.06,185.19,185.16,38.1]
[1755556423898,4.88057281,185.19,185.16,38.1]
[1755556424094,0.72,185.17,185.16,38.1]
[1755556425407,0.72,185.17,185.16,43.50073449]
[1755556428515,0.06,185.19,185.16,49.0013073]
[1755556428711,0.06,185.19,185.17,4.82057281]
[1755556428906,0.06,185.19,185.18,38.1]
[1755556430410,0.06,185.19,185.18,43.5001512]
[1755556430816,0.78,185.19,185.18,43.5001512]
[1755556431213,0.78,185.19,185.18,38.1]
[1755556431517,5.60057281,185.19,185.17,38.1]
[1755556431710,0.72,185.18,185.17,38.1]
[1755556431916,5.54057281,185.18,185.17,38.1]
[1755556432242,0.72,185.18,185.17,38.1]
[1755556432739,0.72,185.18,185.16,0.03]
[1755556432944,4.88057281,185.19,185.16,0.03]
[1755556433132,0.72,185.17,185.16,0.03]
[1755556433335,5.54057281,185.17,185.16,0.03]
[1755556437825,10.94101564,185.17,185.16,0.03]
[1755556438736,5.54057281,185.17,185.16,0.03]
[1755556444169,10.94101564,185.17,185.16,0.03]
[1755556444342,10.94101564,185.17,185.14,0.03]
[1755556444343,26.04723121,185.17,185.14,0.03]
[1755556444551,15.10621557,185.14,185.12,0.03]
[1755556444739,24.74736119,185.13,185.12,0.03]
[1755556444937,30.14897086,185.13,185.12,0.03]
[1755556445141,30.86897086,185.13,185.12,0.03]
[1755556451061,5.54057281,185.13,185.12,0.03]
[1755556451267,4.82057281,185.13,185.12,0.03]
[1755556452962,5.47057281,185.13,185.12,0.03]
[1755556453470,10.87218248,185.13,185.12,0.03]
[1755556457665,15.69275529,185.13,185.12,0.03]
[1755556458874,30.79897086,185.13,185.12,0.03]
[1755556459360,25.97839805,185.13,185.12,0.03]
[1755556461877,10.87218248,185.13,185.12,0.03]
[1755556462082,42.92057281,185.13,185.12,0.03]
[1755556462252,42.92057281,185.13,185.12,0.74]
[1755556462450,4.82057281,185.13,185.12,0.74]
[1755556463154,4.82057281,185.14,185.12,0.74]
[1755556464068,4.82057281,185.14,185.13,0.71]
[1755556464274,4.82057281,185.14,185.12,0.03]
[1755556464589,5.47057281,185.13,185.12,0.03]
[1755556464755,5.4010262,185.15,185.12,0.03]
[1755556464954,4.82057281,185.13,185.12,0.74]
[1755556465890,38.1,185.16,185.12,0.74]
[1755556466057,4.82057281,185.14,185.12,0.74]
[1755556466253,38.1,185.16,185.13,0.71]
[1755556466484,4.82057281,185.14,185.13,0.71]
[1755556468079,38.1,185.16,185.13,0.71]
[1755556468255,4.82057281,185.14,185.13,0.71]
[1755556469362,31.46022644,185.18,185.13,0.71]
[1755556469363,0.06,185.18,185.13,6.11158713]
[1755556469686,4.88057281,185.18,185.14,0.71]
[1755556470673,4.88057281,185.18,185.13,10.22215994]
[1755556470876,4.88057281,185.18,185.15,0.71]
[1755556471211,4.88057281,185.18,185.16,0.71]
[1755556471361,4.88057281,185.18,185.13,5.40158713]
[1755556471562,4.82057281,185.17,185.14,0.71]
[1755556472182,4.82057281,185.17,185.13,5.40158713]
[1755556472373,4.82057281,185.17,185.14,0.71]
[1755556472693,4.82057281,185.17,185.15,6.11101988]
[1755556473890,4.82057281,185.17,185.15,0.71]
[1755556474590,4.82057281,185.16,185.13,5.40160967]
[1755556474793,4.82057281,185.14,185.12,0.74]
[1755556474998,4.82057281,185.14,185.12,5.43186822]
[1755556475175,0.65,185.17,185.12,6.14186822]
[1755556475381,4.82057281,185.17,185.13,0.71]
[1755556475681,4.88057281,185.18,185.13,0.71]
[1755556475870,4.88057281,185.18,185.14,5.40131792]
[1755556476075,0.06,185.18,185.15,0.71]
[1755556476299,4.82057281,185.17,185.15,0.71]
[1755556476797,4.82057281,185.17,185.14,6.11131792]
[1755556477299,0.06,185.18,185.15,0.71]
[1755556477502,4.88057281,185.18,185.15,0.71]
[1755556477999,4.88057281,185.18,185.16,0.69]
[1755556478185,4.88057281,185.18,185.14,0.69]
[1755556478386,4.88057281,185.18,185.15,0.69]
[1755556478601,0.06,185.18,185.16,0.69]
[1755556478780,0.06,185.18,185.14,4.82057281]
[1755556478980,0.06,185.18,185.17,0.69]
[1755556479403,0.06,185.18,185.17,6.09044283]
[1755556480474,0.06,185.18,185.16,5.40066531]
[1755556480998,0.06,185.18,185.16,6.09066531]
[1755556482476,4.88057281,185.18,185.16,6.09066531]
[1755556482680,4.88057281,185.18,185.15,5.40097989]
[1755556482981,4.88057281,185.18,185.15,6.09097989]
[1755556483603,4.88057281,185.18,185.16,0.69]
[1755556484412,4.88057281,185.18,185.16,6.09070566]
[1755556488111,0.06,185.18,185.16,5.40070566]
[1755556488291,0.06,185.18,185.17,0.69]
[1755556489115,0.06,185.18,185.16,5.40070566]
[1755556489297,4.82057281,185.17,185.15,5.40099043]
[1755556489719,0.7,185.16,185.14,0.03]
[1755556490011,4.82057281,185.15,185.14,0.03]
[1755556490494,4.82057281,185.16,185.14,0.72]
[1755556491192,4.82057281,185.16,185.14,5.43119014]
[1755556491382,0.06,185.18,185.15,0.69]
[1755556491589,4.82057281,185.17,185.15,0.69]
[1755556493216,4.82057281,185.17,185.15,6.09078729]
[1755556493819,5.52057281,185.17,185.15,5.40078729]
[1755556495311,5.52057281,185.17,185.14,5.43131792]
[1755556495312,4.82057281,185.16,185.14,5.43131792]
[1755556495706,5.52057281,185.17,185.14,5.43131792]
[1755556496318,4.82057281,185.17,185.14,0.72]
[1755556497424,5.52057281,185.17,185.14,0.03]
[1755556497921,4.82057281,185.16,185.14,0.03]
[1755556498436,5.52057281,185.15,185.14,0.03]
[1755556499698,4.88057281,185.18,185.14,0.72]
[1755556499918,4.82057281,185.17,185.14,0.72]
[1755556500307,5.52057281,185.17,185.15,5.40102619]
[1755556500803,5.52057281,185.16,185.15,5.40102619]
[1755556501118,5.52057281,185.16,185.14,5.43126347]
[1755556501300,5.52057281,185.15,185.14,0.03]
[1755556502423,4.82057281,185.16,185.14,5.43131792]
[1755556502721,5.52057281,185.16,185.14,5.43131792]
[1755556503098,4.82057281,185.16,185.14,5.43131792]
[1755556503519,5.52057281,185.16,185.14,5.43131792]
[1755556503751,4.82057281,185.17,185.14,6.12131792]
[1755556505230,0.06,185.18,185.15,5.51057281]
[1755556505430,0.06,185.18,185.16,5.51057281]
[1755556506029,0.06,185.18,185.16,0.69]
[1755556507214,0.06,185.18,185.17,5.40044283]
[1755556507911,0.06,185.18,185.17,6.07044283]
[1755556508722,0.06,185.18,185.17,10.89101564]
[1755556512838,0.06,185.18,185.17,10.22101564]
[1755556513636,0.06,185.18,185.17,5.40044283]
[1755556514438,0.76,185.18,185.16,5.40073449]
[1755556514836,0.06,185.18,185.17,0.67]
[1755556515016,0.06,185.18,185.16,10.2213073]
[1755556515535,0.06,185.18,185.16,5.40073449]
[1755556516344,0.76,185.18,185.16,5.40073449]
[1755556517324,0.06,185.18,185.16,5.40073449]
[1755556517735,0.76,185.18,185.16,5.40073449]
[1755556517953,5.52057281,185.17,185.14,5.43122378]
[1755556518157,4.82057281,185.15,185.14,0.03]
[1755556518326,5.52057281,185.15,185.14,0.03]
[1755556520119,4.82057281,185.15,185.14,0.03]
[1755556520324,5.52057281,185.15,185.14,0.03]
[1755556521950,10.921599,185.15,185.14,0.03]
[1755556522156,14.96362628,185.15,185.14,0.03]
[1755556523053,19.78419909,185.15,185.14,0.03]
[1755556523243,23.42037353,185.15,185.14,0.03]
[1755556523423,23.41943108,185.15,185.14,0.03]
[1755556523620,18.59885827,185.15,185.14,0.03]
[1755556523851,26.0,185.13,185.12,0.03]
[1755556524061,4.82057281,185.11,185.1,0.03]
[1755556524226,34.85852134,185.11,185.1,0.03]
[1755556524434,35.55852134,185.11,185.1,0.03]
[1755556525046,5.52057281,185.11,185.1,0.03]